[Event "*** Titled Tuesday Blitz"]
[Site "Chess.com"]
[Date "2021.04.27"]
[Round "9"]
[White "Dyadya81"]
[Black "zmeeed67"]
[Result "1-0"]
[WhiteElo "2717"]
[BlackElo "2556"]
[TimeControl "180+1"]
[EndTime "11:44:05 PDT"]
[Termination "Dyadya81 won by resignation"]

1. e4 {[%clk 0:03:00.9]} 1... c5 {[%clk 0:02:32.5]} 2. Nf3 {[%clk 0:03:00.2]}
2... e6 {[%clk 0:02:32.9]} 3. d4 {[%clk 0:03:00.1]} 3... cxd4 {[%clk 0:02:33.8]}
4. Nxd4 {[%clk 0:03:00.8]} 4... Nf6 {[%clk 0:02:34.5]} 5. Nc3 {[%clk 0:03:01.4]}
5... Bb4 {[%clk 0:02:35.2]} 6. e5 {[%clk 0:03:00.9]} 6... Nd5 {[%clk 0:02:35.4]}
7. Bd2 {[%clk 0:03:00.5]} 7... Bxc3 {[%clk 0:02:35.8]} 8. bxc3 {[%clk
0:03:01.2]} 8... O-O {[%clk 0:02:36.7]} 9. c4 {[%clk 0:02:51.9]} 9... Ne7 {[%clk
0:02:36.5]} 10. Bb4 {[%clk 0:02:44.8]} 10... Nbc6 {[%clk 0:02:02.2]} 11. Nxc6
{[%clk 0:02:41.7]} 11... Nxc6 {[%clk 0:02:03.1]} 12. Bxf8 {[%clk 0:02:29.1]}
12... Qa5+ {[%clk 0:02:03]} 13. Bb4 {[%clk 0:02:12.1]} 13... Nxb4 {[%clk
0:01:58.7]} 14. c3 {[%clk 0:02:06]} 14... Qxe5+ {[%clk 0:01:56.6]} 15. Be2
{[%clk 0:02:04.9]} 15... Qxc3+ {[%clk 0:01:51.4]} 16. Kf1 {[%clk 0:02:05.1]}
16... b6 {[%clk 0:01:40.4]} 17. h4 {[%clk 0:02:03]} 17... Bb7 {[%clk 0:01:30.6]}
18. Rh3 {[%clk 0:02:02.5]} 18... Qf6 {[%clk 0:01:08.4]} 19. Rb1 {[%clk
0:01:59.2]} 19... Na6 {[%clk 0:00:48.4]} 20. Qxd7 {[%clk 0:01:51.9]} 20... Qg6
{[%clk 0:00:34.1]} 21. Rd3 {[%clk 0:01:46.4]} 21... Bxg2+ {[%clk 0:00:23.3]} 22.
Ke1 {[%clk 0:01:46.2]} 22... h5 {[%clk 0:00:19.6]} 23. Qb5 {[%clk 0:01:16]}
23... Nc5 {[%clk 0:00:17.7]} 24. Rg3 {[%clk 0:01:16]} 24... Qe4 {[%clk
0:00:17.9]} 25. Rd1 {[%clk 0:00:59]} 25... Qb7 {[%clk 0:00:17.7]} 26. Qb2 {[%clk
0:00:56.4]} 26... g6 {[%clk 0:00:14.5]} 27. Bxh5 {[%clk 0:00:51.9]} 27... Be4
{[%clk 0:00:14.7]} 28. Qf6 {[%clk 0:00:47.7]} 28... Bf5 {[%clk 0:00:11.5]} 29.
Bf3 {[%clk 0:00:41.4]} 29... Ne4 {[%clk 0:00:08.5]} 30. Qe5 {[%clk 0:00:38.9]}
30... Qc6 {[%clk 0:00:03.5]} 31. Rd4 {[%clk 0:00:33.9]} 31... Qc5 {[%clk
0:00:01.8]} 32. Rxe4 {[%clk 0:00:31.6]} 32... Bxe4 {[%clk 0:00:01.4]} 33. Qxc5
{[%clk 0:00:31.7]} 33... bxc5 {[%clk 0:00:01.5]} 34. Bxe4 {[%clk 0:00:32]} 34...
Rb8 {[%clk 0:00:02.4]} 35. Rb3 {[%clk 0:00:31.9]} 35... Rd8 {[%clk 0:00:02.4]}
36. Rd3 {[%clk 0:00:22.9]} 36... Rb8 {[%clk 0:00:02.6]} 37. a3 {[%clk
0:00:16.6]} 37... Kf8 {[%clk 0:00:02]} 38. Rd7 {[%clk 0:00:16.2]} 38... Rb2
{[%clk 0:00:01.1]} 39. Rxa7 {[%clk 0:00:15.8]} 39... f5 {[%clk 0:00:02]} 40. Bc6
{[%clk 0:00:14.3]} 40... e5 {[%clk 0:00:01.2]} 41. a4 {[%clk 0:00:14.7]} 41...
e4 {[%clk 0:00:01.5]} 42. a5 {[%clk 0:00:15.1]} 42... Rb1+ {[%clk 0:00:01.2]}
43. Ke2 {[%clk 0:00:15.1]} 43... Rb2+ {[%clk 0:00:02.1]} 44. Ke3 {[%clk
0:00:15.4]} 44... Rb3+ {[%clk 0:00:03]} 45. Kf4 {[%clk 0:00:14.9]} 45... Rf3+
{[%clk 0:00:03.9]} 46. Kg5 {[%clk 0:00:15.3]} 46... Rxf2 {[%clk 0:00:04.8]} 47.
Kf6 {[%clk 0:00:15.9]} 47... Kg8 {[%clk 0:00:03.5]} 48. Kxg6 {[%clk 0:00:09.8]}
48... Rg2+ {[%clk 0:00:03.3]} 49. Kxf5 {[%clk 0:00:09.9]} 49... Rg7 {[%clk
0:00:02.9]} 50. Bd5+ {[%clk 0:00:09.2]} 1-0

[Event "*** Titled Tuesday Blitz"]
[Site "Chess.com"]
[Date "2021.04.27"]
[Round "9"]
[White "Karttunen"]
[Black "Goryachkina"]
[Result "0-1"]
[WhiteElo "2520"]
[BlackElo "2672"]
[TimeControl "180+1"]
[EndTime "11:44:06 PDT"]
[Termination "Goryachkina won by resignation"]

1. c4 {[%clk 0:02:41.6]} 1... e6 {[%clk 0:02:59.4]} 2. Nc3 {[%clk 0:02:37.8]}
2... d5 {[%clk 0:02:59.6]} 3. d4 {[%clk 0:02:35.6]} 3... Be7 {[%clk 0:02:54.9]}
4. Nf3 {[%clk 0:02:26.5]} 4... Nf6 {[%clk 0:02:54.5]} 5. cxd5 {[%clk 0:02:23.3]}
5... exd5 {[%clk 0:02:50.1]} 6. Bg5 {[%clk 0:02:21.4]} 6... c6 {[%clk
0:02:49.6]} 7. e3 {[%clk 0:02:21.1]} 7... Bf5 {[%clk 0:02:49.7]} 8. Ne5 {[%clk
0:02:02.6]} 8... O-O {[%clk 0:02:47.6]} 9. Bd3 {[%clk 0:01:50.1]} 9... Bxd3
{[%clk 0:02:34.4]} 10. Qxd3 {[%clk 0:01:49.4]} 10... Nbd7 {[%clk 0:02:32]} 11.
O-O {[%clk 0:01:45.5]} 11... Re8 {[%clk 0:02:31.3]} 12. f4 {[%clk 0:01:31]}
12... Ne4 {[%clk 0:02:11.5]} 13. Bxe7 {[%clk 0:01:26.1]} 13... Qxe7 {[%clk
0:02:10.9]} 14. Nxe4 {[%clk 0:01:24.9]} 14... dxe4 {[%clk 0:02:10.7]} 15. Qb3
{[%clk 0:01:20]} 15... Nf6 {[%clk 0:02:09.7]} 16. Rac1 {[%clk 0:00:54]} 16...
Nd5 {[%clk 0:02:08.4]} 17. Ng4 {[%clk 0:00:46.8]} 17... f6 {[%clk 0:02:02.8]}
18. f5 {[%clk 0:00:40.6]} 18... a5 {[%clk 0:01:49.2]} 19. a3 {[%clk 0:00:38.4]}
19... Qf7 {[%clk 0:01:38.7]} 20. Rce1 {[%clk 0:00:26.4]} 20... Ra6 {[%clk
0:01:37.8]} 21. Nf2 {[%clk 0:00:24.4]} 21... a4 {[%clk 0:01:35.2]} 22. Qc2
{[%clk 0:00:22.6]} 22... Qe7 {[%clk 0:01:34.6]} 23. Nh3 {[%clk 0:00:22.4]} 23...
Rb6 {[%clk 0:01:13.2]} 24. Nf4 {[%clk 0:00:22.3]} 24... Nxf4 {[%clk 0:01:05.7]}
25. Rxf4 {[%clk 0:00:21.4]} 25... Rb3 {[%clk 0:01:03.1]} 26. Qc4+ {[%clk
0:00:21.3]} 26... Qf7 {[%clk 0:00:58.2]} 27. Qc2 {[%clk 0:00:20]} 27... Qd5
{[%clk 0:00:57.5]} 28. g4 {[%clk 0:00:18]} 28... b6 {[%clk 0:00:36.6]} 29. h4
{[%clk 0:00:17.6]} 29... c5 {[%clk 0:00:36.5]} 30. dxc5 {[%clk 0:00:17.1]} 30...
Qxc5 {[%clk 0:00:36.7]} 31. Qd2 {[%clk 0:00:15.3]} 31... Rd3 {[%clk 0:00:32.6]}
32. Qf2 {[%clk 0:00:15.2]} 32... Red8 {[%clk 0:00:32.2]} 33. Rxe4 {[%clk
0:00:14.4]} 33... Qd5 {[%clk 0:00:19.9]} 34. Rd4 {[%clk 0:00:13.5]} 34... Rxd4
{[%clk 0:00:17.4]} 35. exd4 {[%clk 0:00:14.4]} 35... Qxd4 {[%clk 0:00:12.9]} 36.
Re8+ {[%clk 0:00:13.5]} 36... Kf7 {[%clk 0:00:13.4]} 37. Qxd4 {[%clk 0:00:11.4]}
37... Rxd4 {[%clk 0:00:13.2]} 38. Rb8 {[%clk 0:00:11.4]} 38... Rxg4+ {[%clk
0:00:13.1]} 39. Kf2 {[%clk 0:00:11.6]} 39... Rxh4 {[%clk 0:00:12.3]} 40. Rxb6
{[%clk 0:00:12.2]} 40... Rf4+ {[%clk 0:00:12.6]} 41. Ke3 {[%clk 0:00:12.6]}
41... Rxf5 {[%clk 0:00:13]} 42. Rb4 {[%clk 0:00:12.5]} 42... Ra5 {[%clk
0:00:13.2]} 43. Kd4 {[%clk 0:00:12.2]} 43... h5 {[%clk 0:00:13.2]} 44. Ke4
{[%clk 0:00:12.5]} 44... h4 {[%clk 0:00:13.2]} 45. Kf4 {[%clk 0:00:13.1]} 45...
g5+ {[%clk 0:00:13.4]} 46. Kg4 {[%clk 0:00:13.4]} 46... Kg6 {[%clk 0:00:13.9]}
47. Rb6 {[%clk 0:00:13.1]} 47... Re5 {[%clk 0:00:12.4]} 48. Rb8 {[%clk
0:00:12.8]} 48... Re4+ {[%clk 0:00:11]} 49. Kf3 {[%clk 0:00:13.1]} 49... Rf4+
{[%clk 0:00:11.4]} 50. Ke3 {[%clk 0:00:12.6]} 50... Kf5 {[%clk 0:00:10.4]} 51.
Rb5+ {[%clk 0:00:12.2]} 51... Kg4 {[%clk 0:00:10.6]} 52. Rb8 {[%clk 0:00:11]}
52... h3 {[%clk 0:00:10.6]} 53. b4 {[%clk 0:00:10]} 53... axb3 {[%clk
0:00:10.2]} 54. a4 {[%clk 0:00:10]} 54... Rxa4 {[%clk 0:00:09.6]} 0-1

[Event "*** Titled Tuesday Blitz"]
[Site "Chess.com"]
[Date "2021.04.27"]
[Round "9"]
[White "ChampStan"]
[Black "ErikRonka"]
[Result "1-0"]
[WhiteElo "2154"]
[BlackElo "2453"]
[TimeControl "180+1"]
[EndTime "11:44:07 PDT"]
[Termination "ChampStan won on time"]

1. e4 {[%clk 0:03:00.9]} 1... g6 {[%clk 0:02:58.9]} 2. d4 {[%clk 0:03:01.1]}
2... Bg7 {[%clk 0:02:59.3]} 3. Nf3 {[%clk 0:02:53.8]} 3... d6 {[%clk 0:02:59.3]}
4. h3 {[%clk 0:02:53.4]} 4... Nf6 {[%clk 0:02:58.4]} 5. Nc3 {[%clk 0:02:53.7]}
5... c6 {[%clk 0:02:57.6]} 6. a4 {[%clk 0:02:50.6]} 6... O-O {[%clk 0:02:56.4]}
7. Be2 {[%clk 0:02:51.2]} 7... Nbd7 {[%clk 0:02:53.2]} 8. Be3 {[%clk 0:02:51.5]}
8... e5 {[%clk 0:02:53.5]} 9. dxe5 {[%clk 0:02:50.6]} 9... dxe5 {[%clk
0:02:52.5]} 10. O-O {[%clk 0:02:30.4]} 10... Qc7 {[%clk 0:02:46.5]} 11. Qd2
{[%clk 0:02:26.7]} 11... b6 {[%clk 0:02:25.2]} 12. Rfd1 {[%clk 0:02:24.2]} 12...
Re8 {[%clk 0:02:22.7]} 13. a5 {[%clk 0:02:22.2]} 13... b5 {[%clk 0:02:21.4]} 14.
b4 {[%clk 0:01:51]} 14... a6 {[%clk 0:02:06.9]} 15. Bh6 {[%clk 0:01:46.4]} 15...
Bb7 {[%clk 0:02:01.7]} 16. Bxg7 {[%clk 0:01:45]} 16... Kxg7 {[%clk 0:02:02.6]}
17. Nh4 {[%clk 0:01:12.2]} 17... h6 {[%clk 0:01:54]} 18. Qe3 {[%clk 0:01:07.9]}
18... Nf8 {[%clk 0:01:47.2]} 19. Qg3 {[%clk 0:00:51.7]} 19... Ne6 {[%clk
0:01:45.4]} 20. Nf5+ {[%clk 0:00:49.8]} 20... Kh7 {[%clk 0:01:42.8]} 21. Nd6
{[%clk 0:00:50.7]} 21... Nf4 {[%clk 0:01:13.9]} 22. Nxe8 {[%clk 0:00:48.2]}
22... Rxe8 {[%clk 0:01:14.8]} 23. Bf1 {[%clk 0:00:25.6]} 23... c5 {[%clk
0:01:14.4]} 24. bxc5 {[%clk 0:00:23.7]} 24... Qxc5 {[%clk 0:01:05.2]} 25. Qe3
{[%clk 0:00:22.5]} 25... Qc7 {[%clk 0:01:02.7]} 26. Qb6 {[%clk 0:00:21.5]} 26...
Qxc3 {[%clk 0:00:52.7]} 27. Qxf6 {[%clk 0:00:16.8]} 27... Qc7 {[%clk 0:00:34.7]}
28. Qb6 {[%clk 0:00:15.4]} 28... Qc8 {[%clk 0:00:34.7]} 29. g3 {[%clk
0:00:09.9]} 29... Ne6 {[%clk 0:00:28.2]} 30. Bg2 {[%clk 0:00:09.8]} 30... Nd4
{[%clk 0:00:22.3]} 31. Rxd4 {[%clk 0:00:08.7]} 31... exd4 {[%clk 0:00:23.2]} 32.
Qxd4 {[%clk 0:00:08.7]} 32... Qxc2 {[%clk 0:00:21]} 33. Qd7 {[%clk 0:00:08.3]}
33... Qc6 {[%clk 0:00:07.9]} 34. Qxf7+ {[%clk 0:00:08.1]} 34... Kh8 {[%clk
0:00:08.4]} 35. Rd1 {[%clk 0:00:06.5]} 35... Rf8 {[%clk 0:00:08]} 36. Qe7 {[%clk
0:00:05.9]} 36... Re8 {[%clk 0:00:07]} 37. Qb4 {[%clk 0:00:05.1]} 37... Qc7
{[%clk 0:00:05]} 38. Rd6 {[%clk 0:00:04.6]} 38... Rg8 {[%clk 0:00:04.5]} 39.
Qd4+ {[%clk 0:00:04.2]} 39... Qg7 {[%clk 0:00:03]} 40. Qc5 {[%clk 0:00:02.8]}
40... Rf8 {[%clk 0:00:02.2]} 41. e5 {[%clk 0:00:03]} 41... Qf7 {[%clk
0:00:02.1]} 42. Bxb7 {[%clk 0:00:02.3]} 42... Qxb7 {[%clk 0:00:02.1]} 43. e6
{[%clk 0:00:02.8]} 43... Qf3 {[%clk 0:00:01.8]} 44. Qd4+ {[%clk 0:00:03.2]} 1-0

[Event "*** Titled Tuesday Blitz"]
[Site "Chess.com"]
[Date "2021.04.27"]
[Round "9"]
[White "Lion-Al-Messi"]
[Black "Nikolaj_6"]
[Result "1-0"]
[WhiteElo "2513"]
[BlackElo "2641"]
[TimeControl "180+1"]
[EndTime "11:44:08 PDT"]
[Termination "Lion-Al-Messi won by resignation"]

1. e4 {[%clk 0:02:59.8]} 1... c5 {[%clk 0:03:00]} 2. Nf3 {[%clk 0:02:59.6]} 2...
d6 {[%clk 0:03:00.3]} 3. d4 {[%clk 0:02:59.9]} 3... cxd4 {[%clk 0:03:00.9]} 4.
Nxd4 {[%clk 0:03:00.8]} 4... Nf6 {[%clk 0:03:01.3]} 5. Nc3 {[%clk 0:03:01.3]}
5... a6 {[%clk 0:03:01.7]} 6. h3 {[%clk 0:03:01.8]} 6... e5 {[%clk 0:03:01.6]}
7. Nde2 {[%clk 0:03:01.7]} 7... h5 {[%clk 0:03:01.6]} 8. Bg5 {[%clk 0:03:01.2]}
8... Be6 {[%clk 0:02:59.3]} 9. Ng3 {[%clk 0:03:00.9]} 9... g6 {[%clk 0:02:57.1]}
10. Qf3 {[%clk 0:02:58.2]} 10... Nbd7 {[%clk 0:02:53.4]} 11. Nf5 {[%clk
0:02:54.4]} 11... b5 {[%clk 0:02:43.1]} 12. Ne3 {[%clk 0:02:52]} 12... Be7
{[%clk 0:02:41.1]} 13. Bd3 {[%clk 0:02:46.1]} 13... b4 {[%clk 0:02:37.8]} 14.
Bxf6 {[%clk 0:02:45]} 14... Nxf6 {[%clk 0:02:34.9]} 15. Ncd5 {[%clk 0:02:44.5]}
15... Bxd5 {[%clk 0:02:34]} 16. Nxd5 {[%clk 0:02:45.4]} 16... Nxd5 {[%clk
0:02:33.5]} 17. exd5 {[%clk 0:02:46.3]} 17... Bg5 {[%clk 0:02:16.3]} 18. O-O
{[%clk 0:02:45.8]} 18... O-O {[%clk 0:02:13.7]} 19. a3 {[%clk 0:02:40.5]} 19...
a5 {[%clk 0:02:09.4]} 20. Bb5 {[%clk 0:02:39.1]} 20... Rb8 {[%clk 0:02:03.4]}
21. Bc6 {[%clk 0:02:33.5]} 21... bxa3 {[%clk 0:01:51.9]} 22. Qxa3 {[%clk
0:02:32.9]} 22... Qc7 {[%clk 0:01:45.6]} 23. Rfb1 {[%clk 0:02:27.4]} 23... Bd8
{[%clk 0:01:45.2]} 24. c3 {[%clk 0:02:19.3]} 24... Kg7 {[%clk 0:01:45.3]} 25. b4
{[%clk 0:02:19.6]} 25... axb4 {[%clk 0:01:45.3]} 26. cxb4 {[%clk 0:02:20.5]}
26... f5 {[%clk 0:01:43]} 27. b5 {[%clk 0:02:20.3]} 27... Rf7 {[%clk 0:01:40.5]}
28. Qd3 {[%clk 0:02:10.1]} 28... e4 {[%clk 0:01:40]} 29. Qe3 {[%clk 0:02:07.3]}
29... Qb6 {[%clk 0:01:36.2]} 30. Qf4 {[%clk 0:02:05.3]} 30... Bf6 {[%clk
0:01:33.8]} 31. Qxd6 {[%clk 0:01:56]} 31... Bxa1 {[%clk 0:01:32]} 32. Rxa1
{[%clk 0:01:56.9]} 32... Qd4 {[%clk 0:01:30.2]} 33. Ra6 {[%clk 0:01:42.4]} 33...
e3 {[%clk 0:01:17.5]} 34. fxe3 {[%clk 0:01:10.7]} 34... Qxe3+ {[%clk 0:01:16.8]}
35. Kh2 {[%clk 0:01:09.6]} 35... Rbf8 {[%clk 0:01:10.3]} 36. Ra3 {[%clk
0:00:55.7]} 36... Qd4 {[%clk 0:01:04.3]} 37. Rg3 {[%clk 0:00:53.6]} 37... Rf6
{[%clk 0:01:04.6]} 38. Qe7+ {[%clk 0:00:38.8]} 38... R8f7 {[%clk 0:01:04.6]} 39.
Qe2 {[%clk 0:00:39.7]} 39... h4 {[%clk 0:00:52.1]} 40. Rd3 {[%clk 0:00:38.7]}
40... Qf4+ {[%clk 0:00:51.5]} 41. Kh1 {[%clk 0:00:38.4]} 41... Qc7 {[%clk
0:00:32.6]} 42. Qd2 {[%clk 0:00:33.9]} 42... Qd6 {[%clk 0:00:30.2]} 43. b6
{[%clk 0:00:33.6]} 43... Re7 {[%clk 0:00:29.2]} 44. b7 {[%clk 0:00:32]} 44...
Rf8 {[%clk 0:00:26.9]} 45. Qc3+ {[%clk 0:00:31.2]} 45... Kh6 {[%clk 0:00:24.4]}
46. Qd2+ {[%clk 0:00:30.3]} 46... Kg7 {[%clk 0:00:24.1]} 47. Qc3+ {[%clk
0:00:30.5]} 47... Kh6 {[%clk 0:00:24]} 48. Rd4 {[%clk 0:00:30.2]} 48... f4
{[%clk 0:00:21.4]} 49. Qd2 {[%clk 0:00:23.6]} 49... g5 {[%clk 0:00:19.6]} 50.
Ra4 {[%clk 0:00:14.8]} 50... f3 {[%clk 0:00:16.2]} 51. Rxh4+ {[%clk 0:00:14]}
51... Kg7 {[%clk 0:00:15.7]} 52. Qxg5+ {[%clk 0:00:13.7]} 52... Qg6 {[%clk
0:00:14.2]} 53. Qxe7+ {[%clk 0:00:13.9]} 53... Rf7 {[%clk 0:00:14.5]} 54. Qe5+
{[%clk 0:00:14.1]} 54... Rf6 {[%clk 0:00:13.4]} 55. Rg4 {[%clk 0:00:13.1]} 55...
f2 {[%clk 0:00:11.9]} 56. Rxg6+ {[%clk 0:00:12.3]} 56... Kxg6 {[%clk 0:00:12.8]}
57. Bb5 {[%clk 0:00:12]} 57... f1=Q+ {[%clk 0:00:12.6]} 1-0

[Event "*** Titled Tuesday Blitz"]
[Site "Chess.com"]
[Date "2021.04.27"]
[Round "9"]
[White "davidkalashian"]
[Black "superchess02"]
[Result "0-1"]
[WhiteElo "2590"]
[BlackElo "2795"]
[TimeControl "180+1"]
[EndTime "11:44:09 PDT"]
[Termination "superchess02 won on time"]

1. e4 {[%clk 0:03:00.9]} 1... e5 {[%clk 0:02:47.5]} 2. Nf3 {[%clk 0:03:00.2]}
2... Nc6 {[%clk 0:02:47.6]} 3. Bb5 {[%clk 0:02:59.9]} 3... Nf6 {[%clk
0:02:47.7]} 4. O-O {[%clk 0:02:59.3]} 4... Nxe4 {[%clk 0:02:48]} 5. Re1 {[%clk
0:02:59]} 5... Nd6 {[%clk 0:02:47.9]} 6. Nxe5 {[%clk 0:02:59.1]} 6... Nxe5
{[%clk 0:02:48.8]} 7. Rxe5+ {[%clk 0:02:59.4]} 7... Be7 {[%clk 0:02:49.3]} 8.
Bf1 {[%clk 0:02:59.3]} 8... O-O {[%clk 0:02:49.7]} 9. d4 {[%clk 0:02:59.7]} 9...
Bf6 {[%clk 0:02:50.4]} 10. Re1 {[%clk 0:03:00]} 10... b6 {[%clk 0:02:49]} 11.
Bf4 {[%clk 0:02:48]} 11... Bb7 {[%clk 0:02:46]} 12. Bxd6 {[%clk 0:02:41.7]}
12... cxd6 {[%clk 0:02:46.9]} 13. c3 {[%clk 0:02:40.5]} 13... a6 {[%clk
0:02:45.1]} 14. Nd2 {[%clk 0:02:39.8]} 14... b5 {[%clk 0:02:45.1]} 15. Qg4
{[%clk 0:02:39.2]} 15... Re8 {[%clk 0:02:37.3]} 16. Bd3 {[%clk 0:02:37.9]} 16...
g6 {[%clk 0:02:31.5]} 17. Be4 {[%clk 0:02:35.9]} 17... Bc6 {[%clk 0:02:31]} 18.
Qf3 {[%clk 0:02:29.1]} 18... Bg5 {[%clk 0:02:17.6]} 19. Bxc6 {[%clk 0:02:10.5]}
19... Rxe1+ {[%clk 0:02:18.5]} 20. Rxe1 {[%clk 0:02:09.7]} 20... dxc6 {[%clk
0:02:19.1]} 21. Ne4 {[%clk 0:01:47.4]} 21... Be7 {[%clk 0:02:17.4]} 22. g3
{[%clk 0:01:40.9]} 22... f5 {[%clk 0:02:02.5]} 23. Nd2 {[%clk 0:01:35]} 23...
Bg5 {[%clk 0:02:02]} 24. Nb3 {[%clk 0:01:25.1]} 24... Qd7 {[%clk 0:02:02]} 25.
Na5 {[%clk 0:01:19.7]} 25... Rc8 {[%clk 0:02:01.4]} 26. d5 {[%clk 0:01:18.3]}
26... c5 {[%clk 0:01:57.6]} 27. Nc6 {[%clk 0:01:17.7]} 27... Re8 {[%clk
0:01:57.6]} 28. Re2 {[%clk 0:01:11.4]} 28... Qf7 {[%clk 0:01:48.2]} 29. h4
{[%clk 0:01:07.5]} 29... Bf6 {[%clk 0:01:38.2]} 30. Rxe8+ {[%clk 0:00:44.6]}
30... Qxe8 {[%clk 0:01:39.1]} 31. h5 {[%clk 0:00:43.5]} 31... Kg7 {[%clk
0:01:37.1]} 32. Kg2 {[%clk 0:00:41.2]} 32... Bg5 {[%clk 0:01:24.5]} 33. b3
{[%clk 0:00:37.2]} 33... c4 {[%clk 0:01:19]} 34. Nd4 {[%clk 0:00:31.5]} 34...
Qe4 {[%clk 0:01:07.7]} 35. bxc4 {[%clk 0:00:15.5]} 35... bxc4 {[%clk 0:01:06.9]}
36. hxg6 {[%clk 0:00:13.4]} 36... hxg6 {[%clk 0:01:06.7]} 37. Qxe4 {[%clk
0:00:08.1]} 37... fxe4 {[%clk 0:01:06.9]} 38. f4 {[%clk 0:00:06.6]} 38... exf3+
{[%clk 0:01:02.1]} 39. Kxf3 {[%clk 0:00:05.8]} 39... Bf6 {[%clk 0:00:51.7]} 40.
Ke4 {[%clk 0:00:05.9]} 40... Kh6 {[%clk 0:00:52.1]} 41. Nc6 {[%clk 0:00:04.3]}
41... Bxc3 {[%clk 0:00:49.4]} 42. Nb8 {[%clk 0:00:05.2]} 42... a5 {[%clk
0:00:48]} 43. Nc6 {[%clk 0:00:05.2]} 43... Kg5 {[%clk 0:00:48.4]} 44. Nd8 {[%clk
0:00:04.5]} 44... Kg4 {[%clk 0:00:46.9]} 45. Nb7 {[%clk 0:00:03.8]} 45... Bb4
{[%clk 0:00:45.4]} 46. a3 {[%clk 0:00:03.9]} 46... Bxa3 {[%clk 0:00:42.8]} 47.
Nxa5 {[%clk 0:00:04]} 47... c3 {[%clk 0:00:42.1]} 48. Kd3 {[%clk 0:00:04.9]}
48... Kxg3 {[%clk 0:00:40]} 49. Kxc3 {[%clk 0:00:04.7]} 49... g5 {[%clk
0:00:39.6]} 50. Nc4 {[%clk 0:00:04.4]} 50... Bc5 {[%clk 0:00:39.5]} 51. Nd2
{[%clk 0:00:04.6]} 51... Kf4 {[%clk 0:00:31.7]} 52. Nb3 {[%clk 0:00:03.2]} 52...
Ba7 {[%clk 0:00:28.8]} 53. Nc1 {[%clk 0:00:02.1]} 53... g4 {[%clk 0:00:29.7]}
54. Kd3 {[%clk 0:00:02.3]} 54... Kf3 {[%clk 0:00:28.9]} 0-1

[Event "*** Titled Tuesday Blitz"]
[Site "Chess.com"]
[Date "2021.04.27"]
[Round "9"]
[White "elextranjero00"]
[Black "jacky72"]
[Result "1/2-1/2"]
[WhiteElo "2620"]
[BlackElo "2740"]
[TimeControl "180+1"]
[EndTime "11:44:11 PDT"]
[Termination "Game drawn by repetition"]

1. e4 {[%clk 0:03:00.9]} 1... e5 {[%clk 0:02:59.1]} 2. Nf3 {[%clk 0:03:01.1]}
2... Nc6 {[%clk 0:02:58.9]} 3. Bc4 {[%clk 0:03:01.1]} 3... Bc5 {[%clk
0:02:58.2]} 4. d3 {[%clk 0:03:01]} 4... Nf6 {[%clk 0:02:57.6]} 5. c3 {[%clk
0:03:00.2]} 5... d6 {[%clk 0:02:58]} 6. a4 {[%clk 0:02:59.1]} 6... a6 {[%clk
0:02:58.3]} 7. Nbd2 {[%clk 0:02:57.7]} 7... h6 {[%clk 0:02:58.2]} 8. O-O {[%clk
0:02:57]} 8... Ba7 {[%clk 0:02:56.9]} 9. b4 {[%clk 0:02:53]} 9... O-O {[%clk
0:02:55]} 10. h3 {[%clk 0:02:52]} 10... Be6 {[%clk 0:02:43.7]} 11. Re1 {[%clk
0:02:44.8]} 11... Nh5 {[%clk 0:02:37.6]} 12. Bxe6 {[%clk 0:02:36.4]} 12... fxe6
{[%clk 0:02:37.5]} 13. Ra2 {[%clk 0:02:34.8]} 13... Nf4 {[%clk 0:02:35.4]} 14.
Nf1 {[%clk 0:02:19]} 14... Qf6 {[%clk 0:02:29.4]} 15. Bxf4 {[%clk 0:02:18.8]}
15... exf4 {[%clk 0:02:29]} 16. d4 {[%clk 0:02:16.1]} 16... e5 {[%clk
0:02:29.4]} 17. b5 {[%clk 0:02:14.4]} 17... Ne7 {[%clk 0:02:23.4]} 18. N1h2
{[%clk 0:02:00.1]} 18... h5 {[%clk 0:02:09]} 19. Rd2 {[%clk 0:01:53.6]} 19...
axb5 {[%clk 0:02:08.2]} 20. axb5 {[%clk 0:01:53.5]} 20... Ng6 {[%clk 0:02:03.9]}
21. Qb3+ {[%clk 0:01:45]} 21... Kh8 {[%clk 0:02:02.1]} 22. Qd5 {[%clk 0:01:10]}
22... Rab8 {[%clk 0:01:57.7]} 23. Red1 {[%clk 0:00:53.7]} 23... Rfe8 {[%clk
0:01:53.7]} 24. Qc4 {[%clk 0:00:52.6]} 24... exd4 {[%clk 0:01:52.4]} 25. cxd4
{[%clk 0:00:50.3]} 25... Bb6 {[%clk 0:01:47.5]} 26. Re2 {[%clk 0:00:45.2]} 26...
Re7 {[%clk 0:01:47.7]} 27. Qd5 {[%clk 0:00:42.3]} 27... Rbe8 {[%clk 0:01:44.4]}
28. Qxh5+ {[%clk 0:00:41.1]} 28... Kg8 {[%clk 0:01:45]} 29. Ng4 {[%clk
0:00:37.5]} 29... Qe6 {[%clk 0:01:17.4]} 30. Ng5 {[%clk 0:00:37.7]} 30... Qb3
{[%clk 0:01:17.9]} 31. Qh7+ {[%clk 0:00:34.1]} 31... Kf8 {[%clk 0:01:18.3]} 32.
Rde1 {[%clk 0:00:28.6]} 32... Re6 {[%clk 0:01:18.6]} 33. Nxe6+ {[%clk
0:00:26.9]} 33... Qxe6 {[%clk 0:01:17.9]} 34. d5 {[%clk 0:00:22.6]} 34... Qf7
{[%clk 0:01:17.3]} 35. e5 {[%clk 0:00:20.7]} 35... f3 {[%clk 0:01:17.4]} 36.
gxf3 {[%clk 0:00:15.3]} 36... Qf5 {[%clk 0:00:28.8]} 37. exd6 {[%clk 0:00:12.1]}
37... Rxe2 {[%clk 0:00:29.7]} 38. Rxe2 {[%clk 0:00:12.3]} 38... Qxf3 {[%clk
0:00:30.4]} 39. Qxg6 {[%clk 0:00:06.7]} 39... Qxe2 {[%clk 0:00:20.2]} 40. Qf5+
{[%clk 0:00:07]} 40... Ke8 {[%clk 0:00:18.2]} 41. Ne5 {[%clk 0:00:04.3]} 41...
Bxf2+ {[%clk 0:00:16.7]} 42. Qxf2 {[%clk 0:00:03.4]} 42... Qxe5 {[%clk
0:00:17.2]} 43. dxc7 {[%clk 0:00:03.5]} 43... Qxc7 {[%clk 0:00:17.6]} 44. Qe3+
{[%clk 0:00:03.7]} 44... Kd8 {[%clk 0:00:17]} 45. Kf2 {[%clk 0:00:03.3]} 45...
Qh2+ {[%clk 0:00:16.6]} 46. Ke1 {[%clk 0:00:03]} 46... Qh1+ {[%clk 0:00:16.3]}
47. Ke2 {[%clk 0:00:03.1]} 47... Qxd5 {[%clk 0:00:16.5]} 48. Qd3 {[%clk
0:00:03.7]} 48... Qd7 {[%clk 0:00:13.5]} 49. Ke3 {[%clk 0:00:02.7]} 49... Ke7
{[%clk 0:00:13]} 50. Qxd7+ {[%clk 0:00:02.7]} 50... Kxd7 {[%clk 0:00:13.9]} 51.
Kd4 {[%clk 0:00:03.4]} 51... Kd6 {[%clk 0:00:13.7]} 52. h4 {[%clk 0:00:03.8]}
52... g6 {[%clk 0:00:14]} 53. Kc4 {[%clk 0:00:03.6]} 53... b6 {[%clk 0:00:13.1]}
54. Kd4 {[%clk 0:00:04]} 54... Ke6 {[%clk 0:00:13.7]} 55. Ke4 {[%clk 0:00:04.5]}
55... Kd6 {[%clk 0:00:14.2]} 56. Kd4 {[%clk 0:00:04.9]} 56... Ke6 {[%clk
0:00:14.6]} 57. Ke4 {[%clk 0:00:05.6]} 57... Kd6 {[%clk 0:00:14]} 58. Kd4 {[%clk
0:00:05.9]} 1/2-1/2